[Event "44th Chess Olympiad Open 2022"]
[Site "Chennai"]
[Date "2022.08.09"]
[Round "11.56"]
[White "Hinga, Githinji"]
[Black "Smith, Shreyas"]
[Result "0-1"]
[ECO "B22"]
[WhiteElo "1954"]
[BlackElo "2147"]
[Annotator "NA RC"]
[PlyCount "58"]
[EventDate "2022.07.29"]
[EventType "team-tourn"]
[EventCountry "IND"]
[SourceTitle "playchess.com"]
[Source "ChessBase"]
[SourceQuality "1"]
[WhiteTeam "Kenya"]
[BlackTeam "Jamaica"]
[WhiteTeamCountry "KEN"]
[BlackTeamCountry "JAM"]
[TimeControl "40/5400+30:1800+30"]

1. e4 {[%emt 0:01:58]} c5 {[%emt 0:00:20]} 2. c3 {[%emt 0:00:58]} Nf6 {[%emt 0:00:31]} 3. d3 {[%emt 0:05:29]} Nc6 {[%emt 0:00:31]} 4. Be3 {[%emt 0:02:15]} e5 {[%emt 0:00:27]} 5. Nf3 {[%emt 0:01:11]} d5 {[%emt 0:00:59]} 6. Qc2 {[%emt 0:00:33]} Be7 {[%emt 0:00:18]} 7. Be2 {[%emt 0:00:53]} O-O {[%emt 0:00:10]} 8. h3 {[%emt 0:00:33]} d4 {[%emt 0:02:41]} 9. Bg5 {[%emt 0:00:33]} dxc3 {[%emt 0:00:37]} 10. bxc3 {[%emt 0:01:25]} c4 {[%emt 0:02:39]} 11. dxc4 {[%emt 0:01:07]} Nd7 {[%emt 0:01:19]} 12. Be3 {[%emt 0:01:06]} Nc5 {[%emt 0:04:34]} 13. Nbd2 {[%emt 0:07:58]} Be6 {[%emt 0:06:22]} 14. O-O {[%emt 0:01:00]} f6 {[%emt 0:01:25]} 15. Nb3 {[%emt 0:01:36]} Na4 {[%emt 0:00:21]} 16. Rfd1 {[%emt 0:01:07]} Qc7 {[%emt 0:00:11]} 17. Rab1 {[%emt 0:02:08]} Rfd8 {[%emt 0:01:55]} 18. Nbd4 {[%emt 0:21:36]} exd4 {[%emt 0:01:02]} 19. cxd4 {[%emt 0:03:19]} Bd7 {[%emt 0:05:43]} 20. c5 {[%emt 0:01:28]} Na5 {[%emt 0:03:01]} 21. Rdc1 {[%emt 0:06:34]} Rac8 {[%emt 0:01:48]} 22. Bd2 {[%emt 0:08:58]} Kh8 {[%emt 0:20:35]} 23. c6 {[%emt 0:07:00]} Bxc6 {[%emt 0:04:12]} 24. d5 {[%emt 0:00:16]} Ba3 {[%emt 0:09:13]} 25. dxc6 {[%emt 0:03:45]} Bxc1 {[%emt 0:00:19]} 26. Rxc1 {[%emt 0:00:48]} Qxc6 {[%emt 0:00:25]} 27. Qd1 {[%emt 0:03:51]} Qxc1 {[%emt 0:01:04]} 28. Qxc1 {[%emt 0:01:14]} Rxc1+ {[%emt 0:00:04]} 29. Bxc1 {[%emt 0:00:04]} Nc3 {[%emt 0:00:19]} 0-1

[Event "44th Chess Olympiad Open 2022"]
[Site "Chennai"]
[Date "2022.08.09"]
[Round "11.56"]
[White "Oluka Robert Mcligeyo"]
[Black "Shaw, Jaden"]
[Result "1/2-1/2"]
[ECO "C07"]
[WhiteElo "1823"]
[BlackElo "1930"]
[Annotator "TA"]
[PlyCount "75"]
[EventDate "2022.07.29"]
[EventType "team-tourn"]
[EventCountry "IND"]
[SourceTitle "playchess.com"]
[Source "ChessBase"]
[SourceQuality "1"]
[WhiteTeam "Kenya"]
[BlackTeam "Jamaica"]
[WhiteTeamCountry "KEN"]
[BlackTeamCountry "JAM"]
[TimeControl "40/5400+30:1800+30"]

{[%evp 25,75,0,5,0,0,10,13,-2,6,-43,-30,-37,-32,-31,-30,-36,6,5,32,28,274,99,87,86,89,89,127,-38,-45,-81,-83,-59,-56,-76,-23,-24,-28,-28,-21,-543,-194,-282,-94,-87,-31,-58,-58,-58,-44,-46,-19,-55]} 1. e4 {[%emt 0:00:22]} e6 {[%emt 0:00:14]} 2. d4 {[%emt 0:00:38]} d5 {[%emt 0:00:27]} 3. Nd2 {[%emt 0:01:32]} c5 {[%emt 0:00:57]} 4. exd5 {[%emt 0:00:57]} Qxd5 {[%emt 0:00:17]} 5. Ngf3 {[%emt 0:01:37]} cxd4 {[%emt 0:00:12]} 6. Bc4 {[%emt 0:00:10]} Qd6 {[%emt 0:00:14]} 7. O-O {[%emt 0:00:40]} Nf6 {[%emt 0:00:21]} 8. Nb3 {[%emt 0:00:09]} Nc6 {[%emt 0:00:22]} 9. Nbxd4 {[%emt 0:00:09]} Nxd4 {[%emt 0:00:24]} 10. Nxd4 {[%emt 0:00:31]} a6 {[%emt 0:01:07]} 11. c3 {[%emt 0:00:55]} Qc7 {[%emt 0:01:21]} 12. Bb3 {[%emt 0:00:11]} Bd6 {[%emt 0:00:40]} 13. h3 {[%emt 0:00:20]} O-O {[%emt 0:02:41]} 14. Qf3 {[%emt 0:01:12] C07: French Tarrasch: 3...c5, 4 Ngf3 and 4 exd5 Qxd5.} e5 {[%emt 0:10:05]} 15. Nc2 {[%emt 0:03:17]} Bd7 {[%emt 0:04:00]} 16. Bg5 {[%emt 0:02:20]} Bc6 $1 {[%emt 0:01:39]} 17. Qe2 {[%emt 0:01:49]} (17. Qd3 $11 {feels stronger.}) 17... Ne4 $15 {[%emt 0:03:12] [#]} 18. Bh4 $146 {[%emt 0:01:07]} ({Predecessor:} 18. Be3 Kh8 19. Rfd1 f5 20. f3 Ng3 21. Qf2 f4 22. Bb6 Qe7 23. Bd5 Rf6 24. Nb4 {0-1 (52) Kopera,M (2150)-Joba,A (1996) Slovakia 2019}) 18... Nc5 {[%emt 0:01:01]} 19. Ne3 {[%emt 0:04:46]} Nxb3 {[%emt 0:10:56]} 20. axb3 {[%emt 0:00:15]} f5 {[%emt 0:07:08]} 21. Rad1 {[%emt 0:02:00]} Rae8 {[%emt 0:15:20]} 22. Qd3 {[%emt 0:02:06][%csl LRd6,LRf5]} Be7 {[%emt 0:07:43] [#]} (22... f4 $1 $11 {and Black stays safe.}) 23. Bxe7 $2 {[%emt 0:00:28]} ({Not} 23. Nxf5 Bxh4 24. Nxh4 Qf7 $11) (23. Qc4+ $1 $18 Kh8 24. Nd5) 23... Qxe7 $16 {[%emt 0:00:12]} 24. Nxf5 {[%emt 0:01:19]} Qg5 {[%emt 0:01:20][%csl Gc6,LRf5,LRg2][%cal Rg5g2]} 25. Ne3 {[%emt 0:13:06]} Kh8 {[%emt 0:06:34]} 26. c4 $2 {[%emt 0:04:43]} (26. Nd5 $16) 26... Rf3 $1 $15 {[%emt 0:08:16][%cal Of3e3] Hoping for ...Rxe3!} 27. h4 {[%emt 0:00:09] [#]} Qxh4 {[%emt 0:04:09]} 28. Qe2 {[%emt 0:04:58]} ({Don't blunder} 28. gxf3 $2 Bxf3 29. Ng2 Qh3 30. Qxf3 Qxf3 $19) 28... Qg5 {[%emt 0:05:37]} 29. b4 {[%emt 0:13:23]} Rf4 {[%emt 0:02:58]} ({Black should play} 29... Rh3 $17 {And now ...Bf3 would win.} 30. Qg4 Qxg4 31. Nxg4 Rb3) 30. Nd5 $1 $11 {[%emt 0:17:13]} Rg4 {[%emt 0:01:23]} 31. f3 $1 {[%emt 0:01:29]} Rh4 {[%emt 0:01:22] Threatening ...Qh6.} 32. Qf2 $2 {[%emt 0:04:08][%mdl 8192]} (32. Nc7 $11 Rc8 33. b5 axb5 34. cxb5) 32... Rxc4 $2 {[%emt 0:02:06]} (32... Qh6 {[%csl Gh6][%cal Rh4h1]} 33. Qd2 Rh1+ 34. Kf2 Qh4+ 35. Ke3 Rxf1 36. Rxf1 Qxc4) 33. Rfe1 {[%emt 0:01:52]} (33. Nc7 {might work better.} Rg8 34. b5 axb5 35. Ne6) 33... Bxd5 $2 {[%emt 0:01:45]} (33... Rh4 $19 {is more deadly.} 34. Nc7 Rf8) 34. Rxd5 $17 {[%emt 0:00:28]} Rc1 {[%emt 0:00:42]} (34... Rxb4 $17 {aiming for ...h6.} 35. Qc2 h6) 35. Qf1 {[%emt 0:02:27]} Rc2 {[%emt 0:00:31]} 36. f4 {[%emt 0:01:14]} Qg6 {[%emt 0:00:36]} 37. Rdxe5 {[%emt 0:00:36]} Qb6+ {[%emt 0:00:16]} 38. Kh1 {[%emt 0:01:11] Never resign too early!  Weighted Error Value: White=0.60/Black=0.58} 1/2-1/2

[Event "44th Chess Olympiad Open 2022"]
[Site "Chennai"]
[Date "2022.08.09"]
[Round "11.57"]
[White "Ayyad, Maher"]
[Black "Rehan, Deng Cypriano"]
[Result "0-1"]
[ECO "D11"]
[WhiteElo "2101"]
[BlackElo "2105"]
[Annotator "NA RC"]
[PlyCount "80"]
[EventDate "2022.07.29"]
[EventType "team-tourn"]
[EventCountry "IND"]
[SourceTitle "playchess.com"]
[Source "ChessBase"]
[SourceQuality "1"]
[WhiteTeam "Brunei"]
[BlackTeam "SSD"]
[WhiteTeamCountry "BRN"]
[TimeControl "40/5400+30:1800+30"]

1. d4 {[%emt 0:00:04]} d5 {[%emt 0:00:19]} 2. Nf3 {[%emt 0:00:05]} Nf6 {[%emt 0:00:10]} 3. g3 {[%emt 0:00:04]} Bf5 {[%emt 0:00:37]} 4. Bg2 {[%emt 0:00:05]} c6 {[%emt 0:00:11]} 5. O-O {[%emt 0:00:08]} Nbd7 {[%emt 0:00:20]} 6. b3 {[%emt 0:00:20]} h6 {[%emt 0:00:23]} 7. Bb2 {[%emt 0:00:06]} e6 {[%emt 0:00:14]} 8. c4 {[%emt 0:00:05]} Be7 {[%emt 0:00:13]} 9. Nc3 {[%emt 0:00:02]} O-O {[%emt 0:00:20]} 10. Nd2 {[%emt 0:00:43]} Qb6 {[%emt 0:00:44]} 11. h3 {[%emt 0:05:27]} Rfe8 {[%emt 0:01:43]} 12. e4 {[%emt 0:03:57]} dxe4 {[%emt 0:00:43]} 13. Ndxe4 {[%emt 0:04:31]} Nxe4 {[%emt 0:00:13]} 14. Nxe4 {[%emt 0:00:08]} Nf6 {[%emt 0:00:13]} 15. Qe2 {[%emt 0:03:36]} Nxe4 {[%emt 0:03:41]} 16. Bxe4 {[%emt 0:00:16]} Bxh3 {[%emt 0:01:45]} 17. Rfd1 {[%emt 0:01:25]} Bf5 {[%emt 0:04:38]} 18. Bxf5 {[%emt 0:00:53]} exf5 {[%emt 0:00:13]} 19. Qf3 {[%emt 0:00:04]} Bf6 {[%emt 0:00:46]} 20. Rab1 {[%emt 0:08:30]} Rad8 {[%emt 0:07:04]} 21. d5 {[%emt 0:02:41]} cxd5 {[%emt 0:04:09]} 22. Rxd5 {[%emt 0:03:29]} Rxd5 {[%emt 0:02:25]} 23. Qxd5 {[%emt 0:04:43]} Bxb2 {[%emt 0:03:40]} 24. Rxb2 {[%emt 0:00:10]} f4 {[%emt 0:00:44]} 25. Kg2 {[%emt 0:05:42]} Rd8 {[%emt 0:06:03]} 26. Qe4 {[%emt 0:01:30]} fxg3 {[%emt 0:11:04]} 27. fxg3 {[%emt 0:00:09]} Qc6 {[%emt 0:00:33]} 28. Qxc6 {[%emt 0:01:22]} bxc6 {[%emt 0:00:03]} 29. c5 {[%emt 0:15:36]} Kf8 {[%emt 0:03:35]} 30. b4 {[%emt 0:00:32]} Ke7 {[%emt 0:01:11]} 31. Kf3 {[%emt 0:00:50]} Rd3+ {[%emt 0:01:07]} 32. Kf4 {[%emt 0:00:16]} Ra3 {[%emt 0:00:49]} 33. Re2+ {[%emt 0:01:27]} Kd8 {[%emt 0:02:18]} 34. Rd2+ {[%emt 0:00:21]} Kc8 {[%emt 0:00:28]} 35. Re2 {[%emt 0:04:38]} a5 {[%emt 0:04:22]} 36. bxa5 {[%emt 0:02:10]} Rxa5 {[%emt 0:00:24]} 37. Rc2 {[%emt 0:04:36]} Kd7 {[%emt 0:00:40]} 38. g4 {[%emt 0:00:25]} Ke6 {[%emt 0:01:15]} 39. Kg3 {[%emt 0:01:03]} Ra3+ {[%emt 0:00:59]} 40. Kg2 {[%emt 0:00:18]} Ke5 {[%emt 0:07:13]} 0-1

[Event "44th Chess Olympiad Open 2022"]
[Site "Chennai"]
[Date "2022.08.09"]
[Round "11.57"]
[White "Ajak Mach Duany"]
[Black "Ayyad, Husain"]
[Result "0-1"]
[ECO "C90"]
[WhiteElo "2029"]
[BlackElo "2209"]
[Annotator "RC"]
[PlyCount "74"]
[EventDate "2022.07.29"]
[EventType "team-tourn"]
[EventCountry "IND"]
[SourceTitle "playchess.com"]
[Source "ChessBase"]
[SourceQuality "1"]
[WhiteTeam "SSD"]
[BlackTeam "Brunei"]
[BlackTeamCountry "BRN"]
[TimeControl "40/5400+30:1800+30"]

1. e4 {[%emt 0:00:05]} e5 {[%emt 0:00:17]} 2. Nf3 {[%emt 0:00:05]} Nc6 {[%emt 0:00:57]} 3. Bb5 {[%emt 0:00:09]} a6 {[%emt 0:00:06]} 4. Ba4 {[%emt 0:00:05]} Nf6 {[%emt 0:02:01]} 5. O-O {[%emt 0:00:15]} b5 {[%emt 0:00:04]} 6. Bb3 {[%emt 0:00:02]} Be7 {[%emt 0:00:06]} 7. Re1 {[%emt 0:00:50]} d6 {[%emt 0:00:04]} 8. h3 {[%emt 0:00:08]} Na5 {[%emt 0:00:05]} 9. d4 {[%emt 0:00:47]} exd4 {[%emt 0:00:16]} 10. Nxd4 {[%emt 0:00:18]} c5 {[%emt 0:00:07]} 11. Bd5 {[%emt 0:10:59]} Nxd5 {[%emt 0:00:50]} 12. exd5 {[%emt 0:00:07]} cxd4 {[%emt 0:00:04]} 13. Bg5 {[%emt 0:02:24]} f6 {[%emt 0:00:06]} 14. Bd2 {[%emt 0:00:44]} Nc4 {[%emt 0:00:10]} 15. Qh5+ {[%emt 0:02:47]} g6 {[%emt 0:05:58]} 16. Qh6 {[%emt 0:00:11]} Kf7 {[%emt 0:00:01]} 17. b3 {[%emt 0:00:47]} Ne5 {[%emt 0:05:07]} 18. c3 {[%emt 0:03:34]} d3 {[%emt 0:02:23]} 19. Na3 {[%emt 0:04:13]} Qa5 {[%emt 0:03:11]} 20. f4 {[%emt 0:02:52]} Bf8 {[%emt 0:01:53]} 21. Qh4 {[%emt 0:00:33]} Nf3+ {[%emt 0:00:02]} 22. gxf3 {[%emt 0:00:20]} Qxa3 {[%emt 0:00:02]} 23. b4 {[%emt 0:00:38]} Bf5 {[%emt 0:01:32]} 24. Qf2 {[%emt 0:11:13]} Be7 {[%emt 0:04:38]} 25. Reb1 {[%emt 0:21:17]} a5 {[%emt 0:01:39]} 26. bxa5 {[%emt 0:01:43]} Qc5 {[%emt 0:00:55]} 27. Qxc5 {[%emt 0:02:07]} dxc5 {[%emt 0:00:02]} 28. Rxb5 {[%emt 0:00:11]} c4 {[%emt 0:00:57]} 29. Rb7 {[%emt 0:00:56]} Rhb8 {[%emt 0:04:11]} 30. Rab1 {[%emt 0:04:52]} Rxb7 {[%emt 0:00:04]} 31. Rxb7 {[%emt 0:00:08]} Kf8 {[%emt 0:00:11]} 32. Be3 {[%emt 0:01:39]} Rxa5 {[%emt 0:01:33]} 33. Rb2 {[%emt 0:11:36]} Rxd5 {[%emt 0:00:40]} 34. h4 {[%emt 0:00:47]} Ba3 {[%emt 0:00:38]} 35. Rb8+ {[%emt 0:00:55]} Kf7 {[%emt 0:00:01]} 36. Bd2 {[%emt 0:00:13]} Rd7 {[%emt 0:00:26]} 37. Rh8 {[%emt 0:02:12]} Bf8 {[%emt 0:00:13]} 0-1

[Event "44th Chess Olympiad Open 2022"]
[Site "Chennai"]
[Date "2022.08.09"]
[Round "11.57"]
[White "Madol Garang Panthoum"]
[Black "Shaker, Musab"]
[Result "1-0"]
[ECO "C55"]
[WhiteElo "1985"]
[BlackElo "1705"]
[Annotator "TA"]
[PlyCount "117"]
[EventDate "2022.07.29"]
[EventType "team-tourn"]
[EventCountry "IND"]
[SourceTitle "playchess.com"]
[Source "ChessBase"]
[SourceQuality "1"]
[WhiteTeam "Uganda"]
[BlackTeam "Brunei"]
[WhiteTeamCountry "UGA"]
[BlackTeamCountry "BRN"]
[TimeControl "40/5400+30:1800+30"]

{[%evp 9,117,-37,4,-30,-19,-20,-25,-16,-18,-6,-19,-20,55,-20,-22,-9,-3,0,0,-6,-6,-11,0,0,5,-19,-10,-20,-20,-56,-56,-55,-55,-95,-72,-118,-98,-114,-89,-93,-79,-117,-88,-80,-83,-82,-26,-24,-31,-27,-27,-44,0,0,0,0,0,-27,0,0,90,89,222,224,177,211,212,200,197,82,82,82,82,82,89,89,91,97,193,181,171,85,147,92,186,173,168,77,80,66,268,260,370,44,44,44,44,37,64,43,29974,29976,29977,29978,29978,29979,29979,29980,29980,29979]} 1. e4 {[%emt 0:00:52]} e5 {[%emt 0:00:07]} 2. Nc3 {[%emt 0:00:25]} Nf6 {[%emt 0:00:12]} 3. Nf3 {[%emt 0:00:18]} Nc6 {[%emt 0:00:15]} 4. Bc4 {[%emt 0:01:56]} Nxe4 {[%emt 0:00:35]} 5. O-O {[%emt 0:03:26]} Nf6 {[%emt 0:08:27]} 6. Re1 {[%emt 0:03:18] C55: Two Knights: 4 d3, 4 d4 exd4 5 e5 and Max Lange Attack.} (6. d4 $5 {[%cal Rd4e5]} e4 7. Ne5 $11) 6... Be7 $1 {[%emt 0:01:44][%cal Oe5e4]} 7. Nxe5 {[%emt 0:00:54]} Nxe5 {[%emt 0:06:00]} 8. Rxe5 {[%emt 0:00:03] Black has an edge.} d6 {[%emt 0:01:31]} 9. Re1 {[%emt 0:01:00]} d5 {[%emt 0:01:47]} 10. Bb3 {[%emt 0:03:10]} O-O {[%emt 0:02:40] [#]} ({Better is} 10... c6 $11) 11. d4 {[%emt 0:01:00]} (11. Nxd5 $1 $14 Nxd5 12. Bxd5) 11... c6 {[%emt 0:07:15]} 12. Ne2 {[%emt 0:03:17] [#]} Ne4 $146 {[%emt 0:05:36]} ({Predecessor:} 12... Bf5 13. Ng3 Bg6 14. Bf4 Re8 15. Qd2 Bf8 16. Rxe8 Nxe8 17. Re1 Nd6 18. Bg5 Qd7 {0-1 (70) Appel,H (2235)-Singer,C (2316) Freising 2001}) 13. f3 {[%emt 0:05:21]} Ng5 {[%emt 0:02:23]} 14. Bf4 {[%emt 0:03:17]} Ne6 {[%emt 0:06:21]} 15. Bg3 {[%emt 0:01:11]} Bg5 {[%emt 0:01:41]} 16. c3 {[%emt 0:04:23]} h5 {[%emt 0:06:24]} 17. f4 {[%emt 0:07:49]} Bh6 {[%emt 0:03:55]} 18. f5 {[%emt 0:04:21]} Ng5 {[%emt 0:01:27]} 19. Nf4 {[%emt 0:04:26]} Bxf5 {[%emt 0:13:15]} 20. Qxh5 {[%emt 0:00:48]} Qd7 {[%emt 0:03:59]} 21. Qd1 {[%emt 0:10:45]} Ne4 {[%emt 0:01:22]} 22. Qf3 {[%emt 0:05:49]} (22. Bc2 $142) 22... Rae8 {[%emt 0:06:18]} 23. h3 {[%emt 0:10:42]} Nxg3 {[%emt 0:07:30]} 24. Qxg3 {[%emt 0:00:06]} Qd6 {[%emt 0:00:51]} 25. Nh5 {[%emt 0:04:16]} Qxg3 {[%emt 0:02:16]} 26. Nxg3 {[%emt 0:00:01]} Bg6 {[%emt 0:01:17]} 27. Kf2 {[%emt 0:02:04] Prevents Be3+.} f6 {[%emt 0:02:10]} (27... Re6 $17 28. Nf1 Rfe8 29. Rxe6 Rxe6) 28. c4 $11 {[%emt 0:01:28]} dxc4 {[%emt 0:00:14]} 29. Bxc4+ {[%emt 0:00:03]} Kh7 {[%emt 0:01:01]} 30. h4 {[%emt 0:03:14][%cal Bh3h4,Bh4h5][%mdl 32]} Rd8 {[%emt 0:01:24]} 31. h5 {[%emt 0:01:55]} Bf7 {[%emt 0:00:27] This bishop pair is nice.} 32. Bd3+ {[%emt 0:01:16]} Kh8 {[%emt 0:00:47]} 33. Re4 {[%emt 0:04:29]} c5 {[%emt 0:00:36]} 34. Nf5 {[%emt 0:01:37]} Bxh5 {[%emt 0:02:24]} (34... Rd7 $11 {remains equal.}) 35. Rh4 $1 $16 {[%emt 0:02:32]} Be8 {[%emt 0:03:17]} (35... c4 $16) 36. Nxh6 $18 {[%emt 0:01:34]} gxh6 {[%emt 0:00:21]} 37. Rxh6+ {[%emt 0:00:07]} Kg8 {[%emt 0:00:24]} 38. Rah1 {[%emt 0:00:54] White threatens Bf5 and mate.} Kf7 {[%emt 0:00:14] [#]} 39. Bg6+ {[%emt 0:02:30]} (39. Rh7+ $1 $18 {has better winning chances.} Ke6 40. Re1+ (40. Rxb7 Rxd4 41. Be2 Rf7 $11) 40... Kd6 41. Rxb7) 39... Ke6 $16 {[%emt 0:00:52]} 40. Re1+ {[%emt 0:01:13]} ({Much worse is} 40. dxc5 $6 Rd2+ 41. Ke3 Rxb2 $11) 40... Kd5 {[%emt 0:00:22]} 41. Bxe8 {[%emt 0:31:00] White is more active.} Rdxe8 {[%emt 0:10:25]} 42. Rxe8 {[%emt 0:00:00]} Rxe8 {[%emt 0:00:05]} 43. dxc5 {[%emt 0:00:00]} Kxc5 {[%emt 0:01:04]} (43... Re6 $16 {keeps fighting.}) 44. Rxf6 {[%emt 0:00:00][%mdl 4096] Endgame KR-KR} Rd8 {[%emt 0:00:21]} 45. Kg1 {[%emt 0:00:00]} (45. g4 $18) 45... b5 {[%emt 0:04:55]} (45... Rd4 $142) 46. g3 {[%emt 0:00:00]} ({White should play} 46. Rf5+ Kc4 47. g4) 46... a5 {[%emt 0:00:48]} (46... Kd4 $16) 47. Kg2 {[%emt 0:00:00]} a4 {[%emt 0:00:51]} ({Weaker is} 47... Rd2+ 48. Rf2 Rd1 49. g4) 48. Rf2 {[%emt 0:00:00]} (48. Rf5+ $18 {is more deadly.} Kc6 49. Rf2) 48... Rd3 {[%emt 0:03:41]} 49. Kh3 {[%emt 0:00:00]} b4 $1 {[%emt 0:00:55] [#]} 50. Kh4 $1 {[%emt 0:00:00] And now g4 would win.} a3 {[%emt 0:03:23]} (50... Rd1 $142 51. g4 Rh1+ 52. Kg3 Kd6) 51. b3 $2 {[%emt 0:00:00]} (51. bxa3 $18 Rxa3 52. g4) 51... Rd1 {[%emt 0:00:50]} 52. g4 {[%emt 0:00:00][%cal Bg3g4,Bg4g5,Bg5g6,Bg6g7][%mdl 32] Black must now prevent g5.} Rh1+ {[%emt 0:01:10]} 53. Kg3 {[%emt 0:00:00] g5 is the strong threat.} Kd4 {[%emt 0:01:45]} 54. g5 {[%emt 0:00:00]} Kc3 $2 {[%emt 0:01:35][%mdl 8192]} (54... Ke5 $14) 55. Rg2 {[%emt 0:00:00] White mates.} Kd4 {[%emt 0:02:13]} 56. g6 {[%emt 0:00:00]} Rh8 {[%emt 0:02:08]} 57. g7 {[%emt 0:00:00]} Rg8 {[%emt 0:00:18]} 58. Kf4 {[%emt 0:00:00]} Kc3 {[%emt 0:01:01]} 59. Ke4 {[%emt 0:03:20] Weighted Error Value: White=0.28 (precise) /Black=0.32} 1-0

[Event "44th Chess Olympiad Open 2022"]
[Site "Chennai"]
[Date "2022.08.09"]
[Round "11.57"]
[White "Al-Burshaid, Ebrahim"]
[Black "Peter Majur Manyang"]
[Result "0-1"]
[ECO "B15"]
[WhiteElo "1702"]
[BlackElo "2095"]
[Annotator "NA RC"]
[PlyCount "64"]
[EventDate "2022.07.29"]
[EventType "team-tourn"]
[EventCountry "IND"]
[SourceTitle "playchess.com"]
[Source "ChessBase"]
[SourceQuality "1"]
[WhiteTeam "Brunei"]
[BlackTeam "SSD"]
[WhiteTeamCountry "BRN"]
[TimeControl "40/5400+30:1800+30"]

1. e4 {[%emt 0:00:01]} c6 {[%emt 0:00:37]} 2. d4 {[%emt 0:00:25]} d5 {[%emt 0:00:05]} 3. Nc3 {[%emt 0:00:05]} dxe4 {[%emt 0:00:16]} 4. Nxe4 {[%emt 0:00:09]} Nf6 {[%emt 0:00:05]} 5. Nxf6+ {[%emt 0:00:23]} exf6 {[%emt 0:00:10]} 6. c3 {[%emt 0:00:23]} Bd6 {[%emt 0:00:17]} 7. Bd3 {[%emt 0:00:28]} O-O {[%emt 0:00:23]} 8. Qc2 {[%emt 0:00:21]} g6 {[%emt 0:04:52]} 9. h4 {[%emt 0:02:08]} Re8+ {[%emt 0:00:34]} 10. Ne2 {[%emt 0:01:02]} Qd7 {[%emt 0:01:37]} 11. Be3 {[%emt 0:03:28]} f5 {[%emt 0:01:31]} 12. O-O-O {[%emt 0:01:31]} b5 {[%emt 0:00:06]} 13. h5 {[%emt 0:02:10]} Be7 {[%emt 0:00:44]} 14. hxg6 {[%emt 0:03:29]} hxg6 {[%emt 0:00:01]} 15. Kb1 {[%emt 0:10:34]} Bf6 {[%emt 0:00:38]} 16. g4 {[%emt 0:01:39]} fxg4 {[%emt 0:02:13]} 17. Nf4 {[%emt 0:15:05]} Bg7 {[%emt 0:03:29]} 18. Ka1 {[%emt 0:10:15]} Qd6 {[%emt 0:02:53]} 19. Rdg1 {[%emt 0:07:51]} Na6 {[%emt 0:01:09]} 20. Rg2 {[%emt 0:01:58]} Nc7 {[%emt 0:03:09]} 21. Rgh2 {[%emt 0:05:53]} Nd5 {[%emt 0:11:27]} 22. Nxd5 {[%emt 0:05:48]} cxd5 {[%emt 0:00:10]} 23. Bxb5 {[%emt 0:04:28]} Bf5 {[%emt 0:00:10]} 24. Bd3 {[%emt 0:00:45]} Be4 {[%emt 0:00:08]} 25. Bxe4 {[%emt 0:00:58]} Rxe4 {[%emt 0:00:15]} 26. Rg2 {[%emt 0:07:27]} Rae8 {[%emt 0:04:07]} 27. a3 {[%emt 0:01:03]} f5 {[%emt 0:01:58]} 28. Bg5 {[%emt 0:03:43]} Re2 {[%emt 0:01:24]} 29. Qd3 {[%emt 0:03:41]} Qb6 {[%emt 0:00:12]} 30. Rb1 {[%emt 0:00:26]} Qb3 {[%emt 0:00:12]} 31. Be3 {[%emt 0:00:51]} R8xe3 {[%emt 0:00:19]} 32. fxe3 {[%emt 0:01:52]} Rxg2 {[%emt 0:00:19]} 0-1

[Event "44th Chess Olympiad Open 2022"]
[Site "Chennai"]
[Date "2022.08.09"]
[Round "11.58"]
[White "Abera, Aydagnuhem Gezachew"]
[Black "Alegre, Fabio Costa"]
[Result "1-0"]
[ECO "B34"]
[WhiteElo "2137"]
[BlackElo "1809"]
[Annotator "NA RC"]
[PlyCount "101"]
[EventDate "2022.07.29"]
[EventType "team-tourn"]
[EventCountry "IND"]
[SourceTitle "playchess.com"]
[Source "ChessBase"]
[SourceQuality "1"]
[WhiteTeam "Ethiopia"]
[BlackTeam "STP"]
[WhiteTeamCountry "ETH"]
[TimeControl "40/5400+30:1800+30"]

1. e4 {[%emt 0:00:06]} c5 {[%emt 0:00:06]} 2. Nf3 {[%emt 0:00:04]} Nc6 {[%emt 0:00:28]} 3. d4 {[%emt 0:00:06]} cxd4 {[%emt 0:00:04]} 4. Nxd4 {[%emt 0:00:04]} g6 {[%emt 0:00:04]} 5. Nc3 {[%emt 0:00:16]} Bg7 {[%emt 0:00:09]} 6. Be3 {[%emt 0:00:08]} Nf6 {[%emt 0:00:10]} 7. f3 {[%emt 0:00:28]} O-O {[%emt 0:00:12]} 8. Qd2 {[%emt 0:00:05]} d5 {[%emt 0:00:08]} 9. O-O-O {[%emt 0:02:45]} Nxd4 {[%emt 0:01:11]} 10. Bxd4 {[%emt 0:00:47]} dxe4 {[%emt 0:00:06]} 11. fxe4 {[%emt 0:04:06]} Be6 {[%emt 0:00:08]} 12. Kb1 {[%emt 0:00:51]} a6 {[%emt 0:02:30]} 13. h4 {[%emt 0:01:13]} h5 {[%emt 0:00:11]} 14. Be2 {[%emt 0:00:49]} b5 {[%emt 0:00:24]} 15. Bf3 {[%emt 0:01:16]} Rc8 {[%emt 0:00:38]} 16. Nd5 {[%emt 0:01:15]} Nxd5 {[%emt 0:10:56]} 17. Bxg7 {[%emt 0:04:44]} Kxg7 {[%emt 0:00:23]} 18. exd5 {[%emt 0:00:34]} Bf5 {[%emt 0:00:11]} 19. Be4 {[%emt 0:02:08]} Bxe4 {[%emt 0:01:06]} 20. Qd4+ {[%emt 0:04:28]} Kg8 {[%emt 0:00:01]} 21. Qxe4 {[%emt 0:00:14]} Qd7 {[%emt 0:03:53]} 22. Rhe1 {[%emt 0:01:30]} Rfe8 {[%emt 0:00:18]} 23. b3 {[%emt 0:00:27]} a5 {[%emt 0:04:04]} 24. c4 {[%emt 0:01:52]} a4 {[%emt 0:01:49]} 25. cxb5 {[%emt 0:12:09]} axb3 {[%emt 0:00:48]} 26. a4 {[%emt 0:01:35]} Qd6 {[%emt 0:02:01]} 27. Kb2 {[%emt 0:03:01]} Qf6+ {[%emt 0:04:57]} 28. Qd4 {[%emt 0:01:52]} Qf5 {[%emt 0:03:51]} 29. Rd2 {[%emt 0:03:14]} Rc2+ {[%emt 0:00:51]} 30. Kxb3 {[%emt 0:00:35]} Rec8 {[%emt 0:00:19]} 31. Rxc2 {[%emt 0:08:26]} Qxc2+ {[%emt 0:01:03]} 32. Kb4 {[%emt 0:00:09]} Qc7 {[%emt 0:03:08]} 33. Rd1 {[%emt 0:10:07]} Qd6+ {[%emt 0:00:20]} 34. Kb3 {[%emt 0:00:37]} Qg3+ {[%emt 0:01:22]} 35. Rd3 {[%emt 0:04:19]} Qxg2 {[%emt 0:00:43]} 36. Rc3 {[%emt 0:00:26]} Rd8 {[%emt 0:00:29]} 37. b6 {[%emt 0:00:45]} Qh1 {[%emt 0:00:49]} 38. Kb2 {[%emt 0:01:48]} Qh2+ {[%emt 0:01:30]} 39. Ka3 {[%emt 0:01:38]} e5 {[%emt 0:00:34]} 40. Qc4 {[%emt 0:01:59]} Qg1 {[%emt 0:00:26]} 41. b7 {[%emt 0:32:59]} e4 {[%emt 0:30:34]} 42. Qc8 {[%emt 0:05:52]} Qa1+ {[%emt 0:00:29]} 43. Kb4 {[%emt 0:00:40]} Qb2+ {[%emt 0:00:26]} 44. Ka5 {[%emt 0:00:28]} Kh7 {[%emt 0:00:04]} 45. Qxd8 {[%emt 0:02:37]} Qxc3+ {[%emt 0:00:30]} 46. Kb6 {[%emt 0:00:20]} Qb4+ {[%emt 0:00:32]} 47. Kc7 {[%emt 0:00:21]} Qc5+ {[%emt 0:00:11]} 48. Kb8 {[%emt 0:01:05]} e3 {[%emt 0:00:10]} 49. Ka8 {[%emt 0:02:29]} e2 {[%emt 0:02:15]} 50. b8=Q {[%emt 0:01:11]} Qc6+ {[%emt 0:04:39]} 51. dxc6 {[%emt 0:00:34]} 1-0